bitfinex-derivatives/quotes_BTCF0:USTF0_20241120
["timestamp","ask_amount","ask_price","bid_price","bid_amount"]
[1732145561456,0.10507303,93991.0,93990.0,0.16010013]
[1732145561758,0.10507303,93991.0,93990.0,0.16310013]
[1732145563259,0.10507303,93991.0,93990.0,0.06174189]
[1732145576163,0.10507303,93991.0,93990.0,0.06074189]
[1732145577063,0.10507303,93991.0,93990.0,0.05774189]
[1732145577264,0.10607303,93991.0,93990.0,0.05774189]
[1732145578063,0.10507303,93991.0,93990.0,0.05974189]
[1732145578264,0.10507303,93991.0,93990.0,0.05674189]
[1732145578463,0.10507303,93991.0,93990.0,0.05874189]
[1732145578965,0.10507303,93991.0,93990.0,0.05974189]
[1732145579560,0.10507303,93991.0,93990.0,0.05674189]
[1732145579868,0.10507303,93991.0,93990.0,0.05974189]
[1732145580468,0.10507303,93991.0,93990.0,0.05774189]
[1732145580666,0.10507303,93991.0,93990.0,0.05974189]
[1732145580868,0.10507303,93991.0,93990.0,0.00659589]
[1732145581165,0.46587303,93991.0,93990.0,0.00659589]
[1732145581466,0.46587303,93991.0,93973.0,0.3704051]
[1732145581467,0.053151,93981.0,93973.0,0.3704051]
[1732145581670,0.12085068,93981.0,93973.0,0.053155]
[1732145582069,0.12085068,93981.0,93973.0,0.3704051]
[1732145582273,0.12085068,93981.0,93974.0,0.053155]
[1732145582460,0.12085068,93981.0,93968.0,0.0935826]
[1732145582461,0.12085068,93981.0,93972.0,0.3172501]
[1732145582667,0.12085068,93981.0,93968.0,0.0001026]
[1732145582668,0.42849968,93981.0,93968.0,0.0001026]
[1732145582871,0.06769968,93973.0,93968.0,0.31839615]
[1732145583175,0.053158,93969.0,93968.0,0.0532606]
[1732145583367,0.053158,93969.0,93968.0,0.06987393]
[1732145584003,0.053158,93969.0,93968.0,0.01671593]
[1732145584168,0.053158,93969.0,93968.0,0.0001026]
[1732145584979,0.053158,93969.0,93968.0,0.0081026]
[1732145585582,0.054158,93969.0,93968.0,0.0101026]
[1732145586076,0.10806404,93969.0,93968.0,0.0101026]
[1732145586384,0.46886404,93969.0,93968.0,0.0101026]
[1732145594874,0.46886404,93969.0,93936.0,0.37147055]
[1732145594875,0.053176,93937.0,93936.0,0.37147055]
[1732145595080,0.053167,93954.0,93921.0,0.3608]
[1732145595081,0.053178,93934.0,93933.0,0.053177]
[1732145595585,0.053178,93934.0,93933.0,0.01661929]
[1732145595797,0.0532806,93934.0,93933.0,0.01661929]
[1732145596085,0.0532806,93934.0,93933.0,0.01661955]
[1732145596586,0.0532806,93934.0,93933.0,0.01661937]
[1732145597291,0.0532806,93934.0,93931.0,0.01661937]
[1732145597292,0.0001026,93934.0,93931.0,0.01661937]
[1732145597476,0.0001026,93934.0,93933.0,0.004]
[1732145597677,0.0001026,93934.0,93933.0,0.02061937]
[1732145597884,0.0011026,93934.0,93933.0,0.02061937]
[1732145598377,0.0542806,93934.0,93933.0,0.02061937]
[1732145598578,0.0542806,93934.0,93933.0,0.004]
[1732145598983,0.1075611,93934.0,93933.0,0.004]
[1732145599488,0.053179,93931.0,93925.0,0.0332]
[1732145599688,0.053185,93922.0,93904.0,0.31829355]
[1732145599897,0.053189,93915.0,93902.0,0.3608]
[1732145600184,0.053189,93915.0,93912.0,0.36239722]
[1732145601302,0.00088001,93930.0,93914.0,0.31957567]
[1732145601587,0.0011026,93934.0,93927.0,0.3608]
[1732145601793,0.05318,93930.0,93928.0,0.0305]
[1732145601988,0.053181,93929.0,93928.0,0.0305]
[1732145603385,0.054181,93929.0,93928.0,0.0305]
[1732145603784,0.056181,93929.0,93928.0,0.0305]
[1732145604898,0.053184,93923.0,93922.0,0.01662167]
[1732145605098,0.053188,93916.0,93915.0,0.0166226]
[1732145605691,0.056181,93929.0,93914.0,0.00013567]
[1732145605692,0.053189,93915.0,93914.0,0.00013567]
[1732145606195,0.053189,93915.0,93914.0,0.01675856]
[1732145607586,0.413989,93915.0,93914.0,0.01675856]
[1732145607791,0.414989,93915.0,93914.0,0.00113567]
[1732145608187,0.414989,93915.0,93914.0,0.00413567]
[1732145608889,0.446889,93915.0,93914.0,0.00413567]
[1732145609093,0.14002086,93915.0,93914.0,0.00413567]
[1732145609898,0.50082086,93915.0,93914.0,0.00413567]
[1732145610092,0.49982086,93915.0,93914.0,0.00313567]
[1732145610300,0.50082086,93915.0,93914.0,0.00413567]
[1732145612606,0.92167027,93915.0,93914.0,6.7e-07]
[1732145612909,0.053196,93901.0,93900.0,0.1]
[1732145613601,0.413996,93901.0,93900.0,0.1]
[1732145614201,0.054196,93901.0,93900.0,0.103]
[1732145615194,0.10798327,93901.0,93900.0,0.103]
[1732145616195,0.10898327,93901.0,93900.0,0.103]
[1732145618000,0.10898327,93901.0,93900.0,0.11962778]
[1732145620405,0.055196,93901.0,93900.0,0.14622889]
[1732145620608,0.055196,93901.0,93900.0,0.15152778]
[1732145620995,0.002,93901.0,93900.0,0.20472478]
[1732145621613,0.055196,93901.0,93900.0,0.20472478]
[1732145622612,0.055196,93901.0,93900.0,0.15152778]
[1732145623915,0.055196,93901.0,93900.0,0.11962778]
[1732145625413,0.055196,93901.0,93900.0,0.103]
[1732145625614,0.415996,93901.0,93900.0,0.11962651]
[1732145626115,0.415996,93901.0,93900.0,0.103]
[1732145626415,0.415996,93901.0,93900.0,0.11962739]
[1732145627413,0.055196,93901.0,93900.0,0.11962739]
[1732145632014,0.055196,93901.0,93900.0,0.17282439]
[1732145633624,0.055196,93901.0,93900.0,0.156197]
[1732145635926,0.055196,93901.0,93900.0,0.103]
[1732145637514,0.055196,93901.0,93900.0,0.156197]
[1732145640322,0.002,93901.0,93900.0,0.156197]
[1732145640829,0.002,93901.0,93900.0,0.47449055]
[1732145641031,0.002,93901.0,93900.0,0.47964557]
[1732145642919,0.002,93901.0,93900.0,0.47954792]
[1732145644631,0.055196,93901.0,93900.0,0.47954792]
[1732145644841,0.055196,93901.0,93900.0,0.156197]
[1732145645221,0.055196,93901.0,93900.0,0.47507532]
[1732145647239,0.055196,93901.0,93900.0,0.47885136]
[1732145647737,0.055196,93901.0,93900.0,0.47885131]
[1732145648140,0.002,93901.0,93900.0,0.47885131]
[1732145649439,0.055196,93901.0,93900.0,0.47885131]
[1732145652142,0.055196,93901.0,93900.0,0.47643328]
[1732145655058,0.002,93901.0,93900.0,0.47643328]
[1732145657456,0.055196,93901.0,93900.0,0.47643328]
[1732145660256,0.002,93901.0,93900.0,0.47643328]
[1732145663563,0.002,93901.0,93900.0,0.85966098]
[1732145663858,0.002,93901.0,93900.0,0.47643328]
[1732145664756,0.055196,93901.0,93900.0,0.47643328]
[1732145665150,0.055196,93901.0,93900.0,0.85926783]
[1732145665569,0.055196,93901.0,93900.0,0.47643328]
[1732145666251,0.055196,93901.0,93900.0,0.86131525]
[1732145666654,0.002,93901.0,93900.0,1.27822995]
[1732145666858,0.005,93919.0,93916.0,0.053188]
[1732145667055,0.02127699,93921.0,93916.0,0.80409545]
[1732145667456,0.083487,93918.0,93916.0,0.80409545]
[1732145668658,0.083487,93918.0,93916.0,0.80509545]
[1732145669063,0.0303,93918.0,93916.0,0.80509545]
[1732145669366,0.0303,93918.0,93916.0,1.11887536]
[1732145669559,0.0303,93918.0,93916.0,1.11887397]
[1732145670152,0.08337869,93918.0,93916.0,0.48281175]
[1732145670658,0.08337869,93918.0,93916.0,0.80153873]
[1732145671064,0.05307869,93918.0,93916.0,0.80153873]
[1732145671262,0.02127699,93921.0,93917.0,0.053187]
[1732145671458,0.00159756,93927.0,93920.0,0.053186]
[1732145671659,0.00159756,93927.0,93926.0,0.12100575]
[1732145671967,0.05421881,93927.0,93926.0,0.12100575]
[1732145672264,0.00159756,93927.0,93926.0,0.48180575]
[1732145672668,0.00159756,93927.0,93926.0,1.1154134]
[1732145672967,0.00359756,93927.0,93926.0,0.79668642]
[1732145673463,0.00559756,93927.0,93926.0,0.79668642]
[1732145674457,0.00559756,93927.0,93926.0,1.11482555]
[1732145674966,0.00559756,93927.0,93926.0,0.053182]
[1732145675162,0.05877956,93927.0,93926.0,0.30766265]
[1732145675353,0.05877956,93927.0,93926.0,0.053182]
[1732145676262,0.05777956,93927.0,93926.0,0.053182]
[1732145676869,0.00459756,93927.0,93926.0,0.053182]
[1732145678461,0.00459756,93927.0,93926.0,0.413982]
[1732145678661,0.00459756,93927.0,93926.0,0.66846265]
[1732145679261,0.00459756,93927.0,93926.0,0.413982]
[1732145679457,0.00459756,93927.0,93926.0,0.66846265]
[1732145679858,0.00459756,93927.0,93926.0,0.413982]
[1732145685380,0.00459756,93927.0,93926.0,0.507062]
[1732145687075,0.003,93927.0,93926.0,0.507062]
[1732145694278,0.003,93927.0,93926.0,1.13983678]
[1732145694577,0.003,93927.0,93926.0,0.82175287]
[1732145694778,0.003,93927.0,93926.0,1.13983728]
[1732145695169,0.003,93927.0,93926.0,0.82175287]
[1732145700076,0.003,93927.0,93926.0,1.20320409]
[1732145700677,0.003,93927.0,93926.0,1.27097876]
[1732145701078,0.003,93927.0,93926.0,0.88952754]
[1732145702867,0.003,93927.0,93926.0,0.82175287]
[1732145703174,0.003,93927.0,93926.0,0.88952754]
[1732145703984,0.003,93927.0,93926.0,0.89126695]
[1732145704368,0.003,93927.0,93926.0,0.79818695]
[1732145704679,0.003,93927.0,93926.0,0.89122695]
[1732145709179,0.003,93927.0,93926.0,1.26839972]
[1732145709485,0.056182,93927.0,93926.0,1.21521772]
[1732145709688,0.056182,93927.0,93926.0,1.12217772]
[1732145709889,0.056182,93927.0,93926.0,1.21521772]
[1732145710183,0.056182,93927.0,93926.0,0.83804495]
[1732145710882,0.056182,93927.0,93926.0,0.47724495]
[1732145711184,0.056182,93927.0,93926.0,0.83804495]
[1732145711775,0.056182,93927.0,93926.0,0.67723028]
[1732145712099,0.3194,93926.0,93914.0,0.37216776]
[1732145712395,0.053184,93923.0,93915.0,0.01662376]
[1732145712684,0.053184,93923.0,93900.0,0.16837467]
[1732145712685,0.3608,93916.0,93914.0,0.19135125]
[1732145712885,0.06777467,93915.0,93902.0,0.31886735]
[1732145713076,0.06777467,93906.0,93903.0,0.01662581]
[1732145713274,0.053194,93905.0,93904.0,0.01662581]
[1732145713673,0.053194,93905.0,93894.0,0.31886735]
[1732145713674,0.31957462,93904.0,93885.0,0.30699898]
[1732145713881,0.31957462,93904.0,93881.0,0.00159756]
[1732145713882,0.053207,93882.0,93881.0,0.00159756]
[1732145715585,0.053207,93882.0,93881.0,0.00359756]
[1732145715586,0.055207,93882.0,93881.0,0.00359756]
[1732145716291,0.10901499,93882.0,93881.0,0.00359756]
[1732145727395,0.002,93882.0,93881.0,0.05680556]
[1732145731714,0.055207,93882.0,93881.0,0.00359756]
[1732145732786,0.002,93882.0,93881.0,0.41760556]
[1732145733184,0.002,93882.0,93881.0,0.47910556]
[1732145736994,0.005,93896.0,93881.0,0.42589756]
[1732145737189,0.058196,93902.0,93900.0,0.053197]
[1732145737389,0.053196,93902.0,93900.0,0.053197]
[1732145737816,0.10571007,93902.0,93900.0,0.053197]
[1732145739904,0.02228554,93901.0,93900.0,0.053197]
[1732145740698,0.05251407,93902.0,93896.0,0.13247166]
[1732145740898,0.053196,93902.0,93901.0,0.053196]
[1732145742407,0.053199,93897.0,93896.0,0.084099]
[1732145743906,0.053199,93897.0,93896.0,0.085099]
[1732145744108,0.001,93902.0,93900.0,0.053196]
[1732145744109,0.053197,93901.0,93900.0,0.053196]
[1732145744413,0.001,93902.0,93901.0,0.053196]
[1732145745405,9.462e-05,93904.0,93897.0,0.10157166]
[1732145745601,0.05286886,93904.0,93903.0,0.413995]
[1732145746408,9.462e-05,93904.0,93903.0,0.413995]
[1732145747000,0.005,93915.0,93914.0,0.053189]
[1732145747202,0.00659761,93929.0,93914.0,0.3608]
[1732145747502,0.053183,93928.0,93927.0,0.053181]
[1732145747911,0.05329205,93928.0,93927.0,0.053181]
[1732145748505,0.00010905,93928.0,93927.0,0.053181]
[1732145749104,0.00210905,93928.0,93927.0,0.053181]
[1732145749400,0.053186,93920.0,93919.0,0.053184]
[1732145752214,0.056186,93920.0,93919.0,0.053184]
[1732145753917,0.053192,93909.0,93908.0,0.084092]
[1732145754211,0.053195,93904.0,93903.0,0.053195]
[1732145755917,0.054195,93904.0,93903.0,0.053195]
[1732145756318,0.055195,93904.0,93903.0,0.053195]
[1732145758213,0.10825447,93904.0,93903.0,0.053195]
[1732145772211,0.10825447,93904.0,93903.0,0.30797605]
[1732145772636,0.10825447,93904.0,93903.0,0.053195]
[1732145785226,0.05505947,93904.0,93903.0,0.053195]
[1732145787230,0.05505947,93904.0,93903.0,0.43323326]
[1732145787424,0.05505947,93904.0,93903.0,0.053195]
[1732145788931,0.10825447,93904.0,93903.0,0.053195]
[1732145789529,0.10825447,93904.0,93903.0,0.17087728]
[1732145789935,0.10825447,93904.0,93903.0,0.053195]
[1732145791236,0.10825447,93904.0,93903.0,0.37231303]
[1732145792941,0.10825447,93904.0,93903.0,0.66643194]
[1732145793629,0.10825447,93904.0,93903.0,0.34731391]
[1732145795736,0.05505947,93904.0,93903.0,0.34731391]
[1732145796236,0.05505947,93904.0,93903.0,0.34757146]
[1732145797945,0.05505947,93904.0,93903.0,0.053195]
[1732145798436,0.05505947,93904.0,93903.0,0.34720168]
[1732145800643,0.10825447,93904.0,93903.0,0.34720168]
[1732145800838,0.10825447,93904.0,93903.0,0.3473957]
[1732145803030,0.10825447,93904.0,93903.0,0.053195]
[1732145804643,0.10825447,93904.0,93903.0,0.413995]
[1732145805733,0.10825447,93904.0,93903.0,0.73299503]
[1732145808240,0.10825447,93904.0,93903.0,0.413995]
[1732145809039,0.10825447,93904.0,93903.0,0.3608]
[1732145809241,0.05505947,93904.0,93900.0,0.2899364]
[1732145809438,0.053196,93901.0,93900.0,0.053196]
[1732145809639,0.05505947,93904.0,93900.0,0.25520839]
[1732145809937,0.053197,93900.0,93899.0,0.25520839]
[1732145810146,0.053198,93899.0,93898.0,0.25520839]
[1732145810346,0.053198,93899.0,93896.0,0.25520839]
[1732145810650,0.053198,93899.0,93885.0,0.48646]
[1732145810651,0.0532,93895.0,93894.0,0.25520839]
[1732145811241,0.053198,93899.0,93898.0,0.001]
[1732145811448,0.05393948,93904.0,93898.0,0.06982007]
[1732145811642,0.05305947,93904.0,93903.0,0.12101507]
[1732145811946,0.053195,93905.0,93904.0,0.053195]
[1732145812147,0.053195,93905.0,93904.0,0.085295]
[1732145812551,0.053195,93905.0,93904.0,0.34030121]
[1732145812737,0.053195,93905.0,93904.0,0.085295]
[1732145813336,0.02127992,93908.0,93907.0,0.053193]
[1732145813541,0.07447292,93908.0,93907.0,0.053193]
[1732145814749,0.07647292,93908.0,93907.0,0.053193]
[1732145814945,0.07747292,93908.0,93907.0,0.053193]
[1732145818556,0.07282007,93914.0,93907.0,0.053193]
[1732145818557,0.005,93914.0,93907.0,0.053193]
[1732145818848,0.005,93920.0,93919.0,0.053186]
[1732145819051,0.053183,93925.0,93924.0,0.053183]
[1732145820649,0.055183,93925.0,93924.0,0.053183]
[1732145821151,0.056183,93925.0,93924.0,0.053183]
[1732145822846,0.0774578,93925.0,93924.0,0.053183]
[1732145823549,0.053185,93921.0,93920.0,0.053186]
[1732145823955,0.053185,93921.0,93914.0,0.25484422]
[1732145823956,0.3608,93921.0,93914.0,0.25484422]
[1732145824256,0.053189,93915.0,93909.0,0.053192]
[1732145824454,0.06782007,93917.0,93910.0,0.25481457]
[1732145824653,0.05319,93912.0,93911.0,0.30800457]
[1732145824854,0.05319,93912.0,93902.0,0.45372]
[1732145824855,0.053191,93910.0,93909.0,0.25481457]
[1732145825059,0.06782007,93912.0,93906.0,0.25481457]
[1732145825357,0.12101307,93907.0,93906.0,0.25481457]
[1732145825742,0.053188,93916.0,93899.0,0.0301]
[1732145825743,0.3608,93909.0,93902.0,0.25481457]
[1732145825942,0.3608,93909.0,93900.0,0.25481457]
[1732145826158,0.05211262,93916.0,93904.0,0.42862007]
[1732145826453,0.053191,93911.0,93910.0,0.06782007]
[1732145826658,0.053192,93909.0,93908.0,0.25481457]
[1732145826844,0.001,93912.0,93908.0,0.25481939]
[1732145827045,0.053191,93910.0,93909.0,0.25481636]
[1732145827248,0.053193,93908.0,93906.0,0.25481636]
[1732145827451,0.053193,93908.0,93907.0,0.25481636]
[1732145827654,0.002,93911.0,93907.0,0.25481636]
[1732145827869,0.002,93911.0,93910.0,0.06782007]
[1732145828055,0.001,93916.0,93910.0,0.12101107]
[1732145828245,0.005,93919.0,93915.0,0.42862007]
[1732145828443,0.00010905,93928.0,93917.0,0.25477818]
[1732145828444,0.005,93924.0,93917.0,0.25477818]
[1732145828755,0.053186,93920.0,93917.0,0.25477818]
[1732145828953,0.053186,93920.0,93919.0,0.06782007]
[1732145829153,0.00010905,93928.0,93919.0,0.06782007]
[1732145829360,0.05333662,93928.0,93919.0,0.06782007]
[1732145829663,0.053186,93920.0,93919.0,0.06782007]
[1732145830763,0.053187,93917.0,93916.0,0.28567818]
[1732145831155,0.053187,93917.0,93916.0,0.0309]
[1732145831357,0.053187,93917.0,93916.0,0.28567818]
[1732145831557,0.053187,93917.0,93916.0,0.0309]
[1732145831860,0.054187,93917.0,93916.0,0.0309]
[1732145832556,0.054187,93917.0,93916.0,0.0633]
[1732145833362,0.001,93917.0,93909.0,0.25477818]
[1732145833558,0.001,93917.0,93908.0,0.25477818]
[1732145833751,0.002,93917.0,93910.0,0.25466652]
[1732145833954,0.002,93917.0,93907.0,0.25466652]
[1732145833955,0.053193,93908.0,93907.0,0.25466652]
[1732145834354,0.053193,93907.0,93906.0,0.0642]
[1732145835859,0.053193,93907.0,93906.0,0.097]
[1732145837858,0.054193,93907.0,93906.0,0.097]
[1732145838154,0.055193,93907.0,93906.0,0.097]
[1732145838361,0.10855007,93907.0,93906.0,0.097]
[1732145841256,0.10855007,93907.0,93906.0,0.35166652]
[1732145841557,0.10855007,93907.0,93906.0,0.097]
[1732145847678,0.10855007,93907.0,93906.0,0.150194]
[1732145847876,0.10855007,93907.0,93906.0,0.097]
[1732145848269,0.10855007,93907.0,93906.0,0.150194]
[1732145848576,0.10855007,93907.0,93906.0,0.097]
[1732145849278,0.10855007,93907.0,93906.0,0.35166652]
[1732145849479,0.10855007,93907.0,93906.0,0.097]
[1732145851671,0.10755007,93907.0,93906.0,0.097]
[1732145851869,0.10855007,93907.0,93906.0,0.150194]
[1732145859185,0.10855007,93907.0,93906.0,0.40486052]
[1732145860172,0.10855007,93907.0,93906.0,0.0328]
[1732145860374,0.10855007,93907.0,93900.0,0.00159733]
[1732145860375,0.053196,93901.0,93900.0,0.00159733]
[1732145860581,0.413996,93901.0,93900.0,0.00159733]
[1732145861586,0.413996,93901.0,93900.0,0.00259733]
[1732145861787,0.413996,93901.0,93900.0,0.00459733]
[1732145867187,0.053195,93905.0,93900.0,0.00459733]
[1732145867490,0.053195,93905.0,93904.0,0.12100987]
[1732145868291,0.054195,93905.0,93904.0,0.12100987]
[1732145868483,0.055195,93905.0,93904.0,0.37607117]
[1732145868795,0.055195,93905.0,93904.0,0.053194]
[1732145868998,0.055195,93905.0,93904.0,0.30825528]
[1732145869188,0.055195,93905.0,93904.0,0.30825557]
[1732145869390,0.055195,93905.0,93904.0,0.053194]
[1732145869685,0.055195,93905.0,93904.0,0.34045765]
[1732145869886,0.055195,93905.0,93904.0,0.085394]
[1732145870489,0.055195,93905.0,93904.0,0.34045765]
[1732145870998,0.055195,93905.0,93904.0,0.085394]
[1732145871999,0.07647502,93905.0,93904.0,0.085394]
[1732145877494,0.02328002,93905.0,93904.0,0.34045765]
[1732145877697,0.02328002,93905.0,93904.0,0.085394]
[1732145877698,0.002,93905.0,93904.0,0.085394]
[1732145878202,0.002,93905.0,93904.0,0.446194]
[1732145878388,0.005,93911.0,93910.0,0.12100687]
[1732145878588,0.02127969,93915.0,93914.0,0.053189]
[1732145878794,0.02127969,93915.0,93914.0,0.413989]
[1732145880294,0.05784522,93923.0,93914.0,0.3608]
[1732145880597,0.10602922,93923.0,93922.0,0.12100087]
[1732145880901,0.053184,93923.0,93922.0,0.12100087]
[1732145881990,0.054184,93923.0,93922.0,0.12100087]
[1732145882396,0.07646467,93923.0,93922.0,0.12100087]
[1732145882592,0.07723249,93923.0,93922.0,0.12100087]
[1732145883193,0.05595182,93923.0,93922.0,0.12100087]
[1732145883697,0.05595182,93923.0,93922.0,0.48180087]
[1732145885507,0.002,93923.0,93922.0,0.48180087]
[1732145888305,0.00010905,93928.0,93922.0,0.48180087]
[1732145888503,0.00010905,93928.0,93927.0,0.12099787]
[1732145889699,0.005,93935.0,93934.0,0.053178]
[1732145889902,0.005,93942.0,93941.0,0.053174]
[1732145890093,1.05423987,93950.0,93949.0,0.053169]
[1732145890408,1.05423987,93950.0,93949.0,0.48178487]
[1732145891901,1.05523987,93950.0,93949.0,0.48178487]
[1732145892495,1.05623987,93950.0,93949.0,0.48178487]
[1732145896707,1.002,93950.0,93949.0,0.54960074]
[1732145896902,0.005,93961.0,93960.0,0.053163]
[1732145897215,0.00159681,93964.0,93963.0,0.053161]
[1732145897400,0.05410775,93964.0,93963.0,0.053161]
[1732145897712,0.00159681,93964.0,93963.0,0.053161]
[1732145898302,0.005,93972.0,93971.0,0.053157]
[1732145898603,0.053154,93977.0,93976.0,0.053154]
[1732145899609,0.053154,93977.0,93972.0,0.0317]
[1732145899610,0.00167984,93977.0,93972.0,0.0317]
[1732145899806,0.00167984,93977.0,93976.0,0.053154]
[1732145901413,0.00167984,93977.0,93976.0,0.413954]
[1732145902509,0.00167984,93977.0,93976.0,0.415954]
[1732145903504,0.00167984,93977.0,93976.0,0.416954]
[1732145905117,0.0538496,93985.0,93984.0,0.05315]
[1732145905310,0.005,93996.0,93995.0,0.053143]
[1732145905503,0.05473855,93997.0,93996.0,0.053143]
[1732145905821,0.10696149,93997.0,93996.0,0.053143]
[1732145907308,0.10796149,93997.0,93996.0,0.053143]
[1732145908313,0.10896149,93997.0,93996.0,0.053143]
[1732145910317,0.053144,93994.0,93993.0,0.053144]
[1732145910906,0.05581949,93997.0,93996.0,0.053143]
[1732145911104,0.05581949,93997.0,93993.0,0.10136679]
[1732145911714,0.05481949,93997.0,93993.0,0.10136679]
[1732145912014,0.001,93994.0,93993.0,0.15451079]
[1732145912410,0.05581949,93997.0,93996.0,0.053143]
[1732145912807,0.05481949,93997.0,93996.0,0.053143]
[1732145913818,0.05581949,93997.0,93996.0,0.053143]
[1732145918824,0.05581949,93997.0,93996.0,0.15450979]
[1732145919323,0.10896149,93997.0,93996.0,0.15450979]
[1732145919512,0.10896149,93997.0,93996.0,0.24710979]
[1732145919913,0.10736494,93997.0,93996.0,0.24710979]
[1732145920819,0.05422294,93997.0,93996.0,0.24710979]
[1732145923016,0.002,93997.0,93996.0,0.24710979]
[1732145926817,0.05405258,93997.0,93996.0,0.21341567]
[1732145927022,0.002,93997.0,93996.0,0.21341567]
[1732145929611,0.005,94007.0,93996.0,0.89337567]
[1732145929817,0.005,94007.0,93999.0,0.053141]
[1732145931721,0.101,94000.0,93999.0,0.053141]
[1732145932319,0.102,94000.0,93999.0,0.053141]
[1732145932725,0.101,94000.0,93999.0,0.053141]
[1732145933019,0.102,94000.0,93999.0,0.053141]
[1732145934221,0.102,94000.0,93999.0,0.10600806]
[1732145934822,0.102,94000.0,93999.0,0.17368073]
[1732145936226,0.102,94000.0,93999.0,0.26628073]
[1732145937932,0.102,94000.0,93999.0,0.3339534]
[1732145938122,0.102,94000.0,93999.0,0.26628073]
[1732145938328,0.102,94000.0,93999.0,0.3339534]
[1732145938830,0.102,94000.0,93999.0,0.26628073]
[1732145939015,0.102,94000.0,93999.0,0.3339534]
[1732145939427,0.102,94000.0,93999.0,0.6947534]
[1732145940126,0.102,94000.0,93999.0,0.62708073]
[1732145942637,0.005,94007.0,93999.0,0.64174368]
[1732145942933,0.05401496,94011.0,93999.0,0.64174368]
[1732145942934,0.05401496,94011.0,94010.0,0.053135]
[1732145943233,0.005,94022.0,94010.0,0.145735]
[1732145943530,0.18998518,94036.0,94010.0,0.145735]
[1732145943531,0.053126,94026.0,94025.0,0.053126]
[1732145943723,0.053126,94026.0,94025.0,0.21339867]
[1732145944230,0.15832098,94030.0,94029.0,0.053124]
[1732145944434,0.053123,94031.0,94030.0,0.053124]
[1732145944621,0.053123,94031.0,94030.0,0.12079667]
[1732145945315,0.053126,94026.0,94025.0,0.145726]
[1732145945520,0.053126,94026.0,94025.0,0.21339867]
[1732145947233,0.0536319,94034.0,94025.0,0.16027267]
[1732145947433,0.053121,94034.0,94033.0,0.12079467]
[1732145948632,0.3608,94042.0,94033.0,0.06767267]
[1732145948823,0.3608,94042.0,94040.0,0.050118]
[1732145948824,0.053117,94041.0,94040.0,0.050118]
[1732145949429,0.10501913,94041.0,94040.0,0.050118]
[1732145950226,0.10601913,94041.0,94040.0,0.050118]
[1732145950430,0.10601913,94041.0,94033.0,0.06767267]
[1732145950431,0.05290213,94041.0,94033.0,0.06767267]
[1732145950732,0.05312,94036.0,94035.0,0.053118]
[1732145951830,0.10602013,94041.0,94040.0,0.053118]
[1732145952033,0.05290213,94041.0,94040.0,0.12079067]
[1732145952427,0.001,94041.0,94040.0,0.12079067]
[1732145953434,0.001,94041.0,94040.0,0.06767267]
[1732145953634,0.054117,94041.0,94040.0,0.12079067]
[1732145954235,0.001,94041.0,94040.0,0.12079067]
[1732145956434,0.054117,94041.0,94040.0,0.21327067]
[1732145956934,0.001,94041.0,94040.0,0.21327067]
[1732145957726,0.001,94041.0,94040.0,0.24577067]
[1732145958047,0.001,94041.0,94040.0,0.15329067]
[1732145958335,0.001,94041.0,94040.0,0.24577067]
[1732145958937,0.053119,94047.0,94040.0,0.24577067]
[1732145959126,0.053119,94047.0,94046.0,0.12079267]
[1732145959326,0.41362119,94053.0,94046.0,0.12079267]
[1732145959527,0.053119,94051.0,94050.0,0.053116]
[1732145962029,0.054119,94051.0,94050.0,0.053116]
[1732145964037,0.001,94051.0,94050.0,0.47758867]
[1732145965440,0.05434565,94055.0,94054.0,0.053115]
[1732145965645,0.00159559,94055.0,94054.0,0.053115]
[1732145966742,0.00159559,94055.0,94054.0,0.12078767]
[1732145967747,0.00259559,94055.0,94054.0,0.12078767]
[1732145981149,0.00310568,94055.0,94054.0,0.12078767]
[1732145984054,0.005,94071.0,94070.0,0.053106]
[1732145984248,0.02125131,94089.0,94070.0,0.57389867]
[1732145984249,0.15829349,94081.0,94070.0,0.57389867]
[1732145984557,0.2112035,94089.0,94084.0,0.053098]
[1732145984558,0.15829349,94086.0,94084.0,0.053098]
[1732145984859,0.02125131,94089.0,94086.0,0.053097]
[1732145985044,0.02125131,94089.0,94088.0,0.06767267]
[1732145985558,0.02125131,94089.0,94088.0,0.12076867]
[1732145987545,0.15829349,94092.0,94091.0,0.053094]
[1732145987745,0.15829349,94093.0,94092.0,0.053094]
[1732145988353,0.15829349,94094.0,94093.0,0.053093]
[1732145988557,0.15829349,94094.0,94093.0,0.12076567]
[1732145989053,0.24393085,94095.0,94094.0,0.053093]
[1732145989458,0.08563736,94095.0,94094.0,0.053093]
[1732145990167,0.02124432,94095.0,94094.0,0.053093]
[1732145990765,0.41523163,94096.0,94095.0,0.053092]
[1732145990959,0.41435162,94096.0,94095.0,0.053092]
[1732145991156,0.3608,94096.0,94095.0,0.053092]
[1732145991554,0.1,94100.0,94095.0,0.053092]
[1732145991860,0.1,94100.0,94099.0,0.12076267]
[1732145993265,0.15211989,94100.0,94099.0,0.12076267]
[1732145995466,0.15211989,94100.0,94099.0,0.21304267]
[1732145999557,0.15211989,94100.0,94090.0,0.0534454]
[1732145999558,0.15211989,94100.0,94090.0,0.1065394]
[1732145999757,0.12076667,94091.0,94083.0,0.09228]
[1732146000054,0.3608,94093.0,94083.0,0.09228]
[1732146000055,0.3608,94084.0,94083.0,0.09228]
[1732146000362,0.3608,94084.0,94083.0,0.145379]
[1732146001065,0.3608,94084.0,94083.0,0.053099]
[1732146001263,0.0333,94092.0,94084.0,0.053098]
[1732146001459,0.3608,94090.0,94083.0,0.15995267]
[1732146001668,0.413895,94090.0,94089.0,0.053096]
[1732146002355,0.3608,94090.0,94089.0,0.053096]
[1732146002966,0.3608,94097.0,94096.0,0.053092]
[1732146003865,0.15211989,94100.0,94099.0,0.05309]
[1732146004966,0.15211989,94100.0,94099.0,0.14537]
[1732146005158,0.1,94100.0,94099.0,0.14537]
[1732146006658,0.1,94100.0,94099.0,0.24646585]
[1732146007154,0.1,94100.0,94099.0,0.15418585]
[1732146007362,0.153089,94100.0,94099.0,0.05309]
[1732146008969,0.1,94100.0,94099.0,0.04809]
[1732146012269,0.1,94100.0,94099.0,0.14918585]